[Event "*** Titled Tuesday Blitz"]
[Site "Chess.com"]
[Date "2020.04.07"]
[Round "1"]
[White "imdvb6307"]
[Black "Fibrinogen"]
[Result "1-0"]
[WhiteElo "2399"]
[BlackElo "2705"]
[TimeControl "180+1"]
[EndTime "13:08:28 PDT"]
[Termination "imdvb6307 won by resignation"]

1. c4 {[%clk 0:02:57.8]} 1... Nf6 {[%clk 0:03:00.3]} 2. Nc3 {[%clk 0:02:56.8]}
2... e5 {[%clk 0:02:58.1]} 3. Nf3 {[%clk 0:02:55.9]} 3... Nc6 {[%clk 0:02:57.1]}
4. e3 {[%clk 0:02:55.2]} 4... Bb4 {[%clk 0:02:54.1]} 5. Qc2 {[%clk 0:02:54.7]}
5... O-O {[%clk 0:02:53.4]} 6. Nd5 {[%clk 0:02:54.3]} 6... Bc5 {[%clk
0:02:51.1]} 7. a3 {[%clk 0:02:52.9]} 7... a5 {[%clk 0:02:48.3]} 8. Bd3 {[%clk
0:02:41]} 8... h6 {[%clk 0:02:47]} 9. O-O {[%clk 0:02:34.3]} 9... d6 {[%clk
0:02:46.2]} 10. b3 {[%clk 0:02:30.9]} 10... Nxd5 {[%clk 0:02:43.2]} 11. cxd5
{[%clk 0:02:29.9]} 11... Ne7 {[%clk 0:02:43.7]} 12. Bc4 {[%clk 0:02:27.7]} 12...
Bb6 {[%clk 0:02:38.2]} 13. Bb2 {[%clk 0:02:21.2]} 13... f5 {[%clk 0:02:29.7]}
14. Nxe5 {[%clk 0:02:09.9]} 14... dxe5 {[%clk 0:02:30.6]} 15. d6+ {[%clk
0:02:09.4]} 15... Kh8 {[%clk 0:02:30]} 16. dxe7 {[%clk 0:02:08.9]} 16... Qxe7
{[%clk 0:02:30.9]} 17. Qc3 {[%clk 0:02:06.2]} 17... Re8 {[%clk 0:02:26.8]} 18.
f4 {[%clk 0:02:03.7]} 18... exf4 {[%clk 0:02:18.7]} 19. Rxf4 {[%clk 0:02:01.5]}
19... Bd7 {[%clk 0:02:18.3]} 20. Rf3 {[%clk 0:01:38.7]} 20... Qf8 {[%clk
0:01:38.8]} 21. Raf1 {[%clk 0:01:07.8]} 21... Re7 {[%clk 0:01:37.2]} 22. Kh1
{[%clk 0:01:06.6]} 22... Rae8 {[%clk 0:01:20.1]} 23. Bd3 {[%clk 0:01:04.1]}
23... Qf7 {[%clk 0:01:05.5]} 24. Bxf5 {[%clk 0:00:59.8]} 24... Bxf5 {[%clk
0:01:06.4]} 25. Rxf5 {[%clk 0:00:58.7]} 25... Qg6 {[%clk 0:01:06.9]} 26. R5f3
{[%clk 0:00:46]} 26... Rg8 {[%clk 0:00:50.3]} 27. Qc4 {[%clk 0:00:36.9]} 27...
Qe6 {[%clk 0:00:45.2]} 28. Qxe6 {[%clk 0:00:34.9]} 28... Rxe6 {[%clk 0:00:46.1]}
29. Rf8 {[%clk 0:00:32.1]} 29... Rd6 {[%clk 0:00:30.2]} 30. Bc3 {[%clk
0:00:24.6]} 30... Rd7 {[%clk 0:00:25]} 31. g3 {[%clk 0:00:22.6]} 31... Bc5
{[%clk 0:00:24.4]} 32. Rxg8+ {[%clk 0:00:20.8]} 32... Kxg8 {[%clk 0:00:25.3]}
33. b4 {[%clk 0:00:20.8]} 33... axb4 {[%clk 0:00:25.5]} 34. axb4 {[%clk
0:00:20.5]} 34... Bd6 {[%clk 0:00:25.8]} 35. Kg2 {[%clk 0:00:20.3]} 35... Re7
{[%clk 0:00:26.2]} 36. Rf5 {[%clk 0:00:18.9]} 36... Re4 {[%clk 0:00:26.3]} 37.
Kf3 {[%clk 0:00:17.8]} 37... Re6 {[%clk 0:00:24.6]} 38. g4 {[%clk 0:00:17.3]}
38... Re7 {[%clk 0:00:23.2]} 39. h4 {[%clk 0:00:16.7]} 39... Kh7 {[%clk
0:00:22.9]} 40. h5 {[%clk 0:00:16.8]} 40... Kg8 {[%clk 0:00:23.2]} 41. e4 {[%clk
0:00:15.7]} 41... c6 {[%clk 0:00:20.1]} 42. d4 {[%clk 0:00:15.4]} 42... Bc7
{[%clk 0:00:20.5]} 43. d5 {[%clk 0:00:15.4]} 43... cxd5 {[%clk 0:00:20.4]} 44.
exd5 {[%clk 0:00:15.2]} 44... Bd6 {[%clk 0:00:20.4]} 45. b5 {[%clk 0:00:14.4]}
45... Rc7 {[%clk 0:00:20.4]} 46. Be5 {[%clk 0:00:14.5]} 46... Rd7 {[%clk
0:00:18.2]} 47. Bd4 {[%clk 0:00:13.5]} 47... Rc7 {[%clk 0:00:17.1]} 48. Ke4
{[%clk 0:00:12.8]} 48... Rc4 {[%clk 0:00:17.2]} 49. Kd3 {[%clk 0:00:12.1]} 49...
Rc1 {[%clk 0:00:17.3]} 50. Rf2 {[%clk 0:00:10.9]} 50... Rd1+ {[%clk 0:00:17.5]}
51. Ke4 {[%clk 0:00:09.3]} 51... Rb1 {[%clk 0:00:16.9]} 52. Rb2 {[%clk
0:00:08.5]} 52... Re1+ {[%clk 0:00:15.6]} 53. Kf5 {[%clk 0:00:08.3]} 53... Re8
{[%clk 0:00:15.5]} 54. Rf2 {[%clk 0:00:05.9]} 54... Kf7 {[%clk 0:00:15.9]} 55.
g5 {[%clk 0:00:05.1]} 55... Kg8 {[%clk 0:00:11.7]} 56. gxh6 {[%clk 0:00:04.4]}
56... gxh6 {[%clk 0:00:12.3]} 57. Kg6 {[%clk 0:00:04.6]} 57... Rf8 {[%clk
0:00:11.8]} 58. Rxf8+ {[%clk 0:00:04.4]} 58... Bxf8 {[%clk 0:00:12.7]} 59. Be3
{[%clk 0:00:04.3]} 59... Bd6 {[%clk 0:00:12.9]} 60. Bxh6 {[%clk 0:00:04.1]}
60... Be5 {[%clk 0:00:13.8]} 61. Bg5 {[%clk 0:00:04.1]} 61... Kf8 {[%clk
0:00:14.3]} 62. Bf6 {[%clk 0:00:04.4]} 62... Bd6 {[%clk 0:00:14.8]} 63. h6
{[%clk 0:00:04.1]} 63... Ke8 {[%clk 0:00:15.5]} 64. h7 {[%clk 0:00:04.4]} 64...
Kd7 {[%clk 0:00:16.4]} 65. h8=Q {[%clk 0:00:04.4]} 65... Kc7 {[%clk 0:00:17.3]}
66. Qh7+ {[%clk 0:00:04.6]} 66... Kb6 {[%clk 0:00:17.8]} 67. Bd4+ {[%clk
0:00:04.5]} 67... Kxb5 {[%clk 0:00:17.9]} 68. Qxb7+ {[%clk 0:00:05]} 68... Kc4
{[%clk 0:00:18.8]} 69. Qc6+ {[%clk 0:00:05.1]} 69... Kxd4 {[%clk 0:00:19.7]} 70.
Qxd6 {[%clk 0:00:05.4]} 70... Kc4 {[%clk 0:00:20.6]} 1-0

[Event "*** Titled Tuesday Blitz"]
[Site "Chess.com"]
[Date "2020.04.07"]
[Round "1"]
[White "adricalderon8"]
[Black "TigrVShlyape"]
[Result "0-1"]
[WhiteElo "2442"]
[BlackElo "2846"]
[TimeControl "180+1"]
[EndTime "13:08:33 PDT"]
[Termination "TigrVShlyape won by resignation"]

1. e4 {[%clk 0:03:00.9]} 1... c5 {[%clk 0:02:58.8]} 2. Nf3 {[%clk 0:03:00.4]}
2... e6 {[%clk 0:02:58.3]} 3. d4 {[%clk 0:02:55.4]} 3... cxd4 {[%clk 0:02:56.2]}
4. Nxd4 {[%clk 0:02:56.3]} 4... a6 {[%clk 0:02:56.1]} 5. Bd3 {[%clk 0:02:55.8]}
5... g6 {[%clk 0:02:53.2]} 6. O-O {[%clk 0:02:52.6]} 6... Bg7 {[%clk 0:02:53.1]}
7. c3 {[%clk 0:02:53.1]} 7... Nf6 {[%clk 0:02:51.7]} 8. f4 {[%clk 0:02:53.2]}
8... d6 {[%clk 0:02:51.6]} 9. f5 {[%clk 0:02:52]} 9... Qe7 {[%clk 0:02:47.4]}
10. Nd2 {[%clk 0:02:50.1]} 10... Nbd7 {[%clk 0:02:45.5]} 11. Nc4 {[%clk
0:02:48.3]} 11... O-O {[%clk 0:02:42]} 12. a4 {[%clk 0:02:47.7]} 12... Nc5
{[%clk 0:02:40.4]} 13. Bg5 {[%clk 0:02:34]} 13... h6 {[%clk 0:02:39.7]} 14. Bh4
{[%clk 0:02:34.1]} 14... exf5 {[%clk 0:02:39.2]} 15. exf5 {[%clk 0:02:31.4]}
15... g5 {[%clk 0:02:27.7]} 16. Bg3 {[%clk 0:02:31.4]} 16... Nfe4 {[%clk
0:02:26.2]} 17. Bxe4 {[%clk 0:02:21]} 17... Nxe4 {[%clk 0:02:23.4]} 18. Re1
{[%clk 0:02:20.6]} 18... d5 {[%clk 0:01:59.3]} 19. Nb6 {[%clk 0:02:17.7]} 19...
Bxd4+ {[%clk 0:01:55.7]} 20. Qxd4 {[%clk 0:02:15.6]} 20... Bxf5 {[%clk
0:01:55.8]} 21. Nxd5 {[%clk 0:02:13.2]} 21... Qe6 {[%clk 0:01:45.4]} 22. Rxe4
{[%clk 0:02:09.2]} 22... Bxe4 {[%clk 0:01:45.2]} 23. Qxe4 {[%clk 0:02:09.6]}
23... Qxe4 {[%clk 0:01:43.7]} 24. Nf6+ {[%clk 0:02:09.4]} 24... Kg7 {[%clk
0:01:43.7]} 25. Nxe4 {[%clk 0:02:10.3]} 25... b5 {[%clk 0:01:23.8]} 26. a5
{[%clk 0:02:07]} 26... f5 {[%clk 0:01:22.4]} 27. Be5+ {[%clk 0:02:05.7]} 27...
Kg6 {[%clk 0:01:21.6]} 28. Nc5 {[%clk 0:02:05]} 28... Rfd8 {[%clk 0:01:20.8]}
29. Bd4 {[%clk 0:02:05.1]} 29... Re8 {[%clk 0:01:19.7]} 30. Kf2 {[%clk
0:02:04.8]} 30... f4 {[%clk 0:01:19.3]} 31. Re1 {[%clk 0:02:04.7]} 31... Rxe1
{[%clk 0:01:18.5]} 32. Kxe1 {[%clk 0:02:05.6]} 32... Kf5 {[%clk 0:01:18.5]} 33.
Kf2 {[%clk 0:02:04.6]} 33... h5 {[%clk 0:01:18.5]} 34. b4 {[%clk 0:01:59.8]}
34... g4 {[%clk 0:01:18]} 35. Nd3 {[%clk 0:01:54.5]} 35... Rc8 {[%clk
0:01:15.1]} 36. g3 {[%clk 0:01:48.3]} 36... f3 {[%clk 0:01:14]} 37. Nf4 {[%clk
0:01:15.9]} 37... Re8 {[%clk 0:01:04.4]} 38. Be3 {[%clk 0:01:08.5]} 38... Rc8
{[%clk 0:01:01.5]} 39. Nd5 {[%clk 0:01:01]} 39... Ke4 {[%clk 0:00:53.4]} 40.
Nf6+ {[%clk 0:00:56.3]} 40... Kf5 {[%clk 0:00:47.8]} 41. Nxh5 {[%clk 0:00:53.5]}
41... Rxc3 {[%clk 0:00:45.9]} 42. Nf4 {[%clk 0:00:51.4]} 42... Rc2+ {[%clk
0:00:45.2]} 43. Kg1 {[%clk 0:00:49.9]} 43... Ke4 {[%clk 0:00:44.1]} 44. Bc5
{[%clk 0:00:49.6]} 44... Rc1+ {[%clk 0:00:43.5]} 45. Kf2 {[%clk 0:00:48.8]}
45... Rc2+ {[%clk 0:00:42.9]} 46. Kg1 {[%clk 0:00:44.9]} 46... Rc1+ {[%clk
0:00:42.2]} 47. Kf2 {[%clk 0:00:44.8]} 47... Rh1 {[%clk 0:00:34.4]} 48. h4
{[%clk 0:00:39.3]} 48... gxh3 {[%clk 0:00:33.8]} 49. Ne6 {[%clk 0:00:19]} 49...
h2 {[%clk 0:00:29.6]} 50. Ng5+ {[%clk 0:00:19.3]} 50... Kf5 {[%clk 0:00:27.6]}
51. Nxf3 {[%clk 0:00:19.6]} 51... Rf1+ {[%clk 0:00:26.8]} 52. Kxf1 {[%clk
0:00:20.2]} 52... h1=Q+ {[%clk 0:00:26.7]} 53. Kf2 {[%clk 0:00:20.9]} 53... Ke4
{[%clk 0:00:26.1]} 54. Nd2+ {[%clk 0:00:17.8]} 54... Kd3 {[%clk 0:00:25.4]} 55.
Nf3 {[%clk 0:00:17.1]} 55... Qh5 {[%clk 0:00:24.3]} 56. Nd4 {[%clk 0:00:16.1]}
56... Ke4 {[%clk 0:00:22.3]} 57. Kg2 {[%clk 0:00:15.8]} 57... Qg4 {[%clk
0:00:20.6]} 58. Kf2 {[%clk 0:00:15.9]} 58... Qh3 {[%clk 0:00:20.2]} 59. Nc6
{[%clk 0:00:13.6]} 59... Qh2+ {[%clk 0:00:19.3]} 60. Ke1 {[%clk 0:00:13.2]}
60... Qxg3+ {[%clk 0:00:19.4]} 61. Kd1 {[%clk 0:00:13.2]} 61... Kd3 {[%clk
0:00:18.9]} 62. Kc1 {[%clk 0:00:10.6]} 62... Qg2 {[%clk 0:00:16.8]} 63. Ne5+
{[%clk 0:00:09.8]} 63... Kc3 {[%clk 0:00:16.9]} 0-1

[Event "*** Titled Tuesday Blitz"]
[Site "Chess.com"]
[Date "2020.04.07"]
[Round "1"]
[White "Ba_clbaf_osed_ingo_3v21"]
[Black "davigator"]
[Result "1-0"]
[WhiteElo "2662"]
[BlackElo "2330"]
[TimeControl "180+1"]
[EndTime "13:08:33 PDT"]
[Termination "Ba_clbaf_osed_ingo_3v21 won by checkmate"]

1. Nf3 {[%clk 0:03:00]} 1... d5 {[%clk 0:02:58.2]} 2. c4 {[%clk 0:03:00.9]} 2...
c6 {[%clk 0:02:57.2]} 3. e3 {[%clk 0:03:00.5]} 3... Nf6 {[%clk 0:02:57.1]} 4.
Nc3 {[%clk 0:03:00.9]} 4... e6 {[%clk 0:02:57.4]} 5. b3 {[%clk 0:02:59.8]} 5...
Be7 {[%clk 0:02:57.6]} 6. Bb2 {[%clk 0:03:00.4]} 6... O-O {[%clk 0:02:58.1]} 7.
Be2 {[%clk 0:03:00.9]} 7... a5 {[%clk 0:02:58.6]} 8. O-O {[%clk 0:02:58.5]} 8...
Nbd7 {[%clk 0:02:57.3]} 9. d4 {[%clk 0:02:58.1]} 9... Nb6 {[%clk 0:02:57]} 10.
Ne5 {[%clk 0:02:56.4]} 10... Nfd7 {[%clk 0:02:56.4]} 11. f4 {[%clk 0:02:55.6]}
11... f6 {[%clk 0:02:55.5]} 12. Nf3 {[%clk 0:02:47.4]} 12... Re8 {[%clk
0:02:54.1]} 13. Bd3 {[%clk 0:02:47.5]} 13... Nf8 {[%clk 0:02:53.9]} 14. Nh4
{[%clk 0:02:46.6]} 14... Nbd7 {[%clk 0:02:53.2]} 15. Qh5 {[%clk 0:02:46.2]}
15... f5 {[%clk 0:02:46.3]} 16. Nf3 {[%clk 0:02:34.9]} 16... Nf6 {[%clk
0:02:45.3]} 17. Qh3 {[%clk 0:02:34.4]} 17... Ne4 {[%clk 0:02:44.7]} 18. Ne5
{[%clk 0:02:30.2]} 18... Bf6 {[%clk 0:02:39.1]} 19. g4 {[%clk 0:02:24]} 19... g6
{[%clk 0:02:32.7]} 20. Kh1 {[%clk 0:02:20.6]} 20... Bg7 {[%clk 0:02:27.9]} 21.
Nxe4 {[%clk 0:02:17]} 21... fxe4 {[%clk 0:02:22.9]} 22. Be2 {[%clk 0:02:17.1]}
22... a4 {[%clk 0:02:20]} 23. Ba3 {[%clk 0:02:09.3]} 23... Nd7 {[%clk
0:01:57.5]} 24. Bd6 {[%clk 0:02:04.1]} 24... Nxe5 {[%clk 0:01:51.6]} 25. fxe5
{[%clk 0:01:53.8]} 25... axb3 {[%clk 0:01:46]} 26. axb3 {[%clk 0:01:53]} 26...
Rxa1 {[%clk 0:01:45.1]} 27. Rxa1 {[%clk 0:01:53.9]} 27... Bf8 {[%clk 0:01:39.6]}
28. Qg3 {[%clk 0:01:44.7]} 28... Bxd6 {[%clk 0:01:38.3]} 29. exd6 {[%clk
0:01:45]} 29... b6 {[%clk 0:01:38.2]} 30. Ra7 {[%clk 0:01:37.2]} 30... Rf8
{[%clk 0:01:36.3]} 31. Qe5 {[%clk 0:01:30.9]} 31... Rf7 {[%clk 0:01:35.5]} 32.
Rxf7 {[%clk 0:01:21]} 32... Kxf7 {[%clk 0:01:34.5]} 33. g5 {[%clk 0:01:21.1]}
33... Bd7 {[%clk 0:01:33.6]} 34. Kg2 {[%clk 0:01:17.5]} 34... Kg8 {[%clk
0:01:31.5]} 35. h4 {[%clk 0:01:16.4]} 35... Qe8 {[%clk 0:01:30.7]} 36. Bg4
{[%clk 0:01:12.6]} 36... Qf7 {[%clk 0:01:30.2]} 37. Kg3 {[%clk 0:01:12.8]} 37...
Qe8 {[%clk 0:01:25.4]} 38. Kf4 {[%clk 0:01:12.1]} 38... Qf8+ {[%clk 0:01:25]}
39. Qf6 {[%clk 0:01:05.6]} 39... Qxf6+ {[%clk 0:01:25]} 40. gxf6 {[%clk
0:01:06.5]} 40... Kf7 {[%clk 0:01:25.9]} 41. Ke5 {[%clk 0:01:06.7]} 41... h6
{[%clk 0:01:26.8]} 42. c5 {[%clk 0:00:59.8]} 42... bxc5 {[%clk 0:01:25.6]} 43.
dxc5 {[%clk 0:00:59.7]} 43... g5 {[%clk 0:01:24.3]} 44. Bh5+ {[%clk 0:00:58.4]}
44... Kf8 {[%clk 0:01:24.2]} 45. hxg5 {[%clk 0:00:59]} 45... hxg5 {[%clk
0:01:24.1]} 46. b4 {[%clk 0:00:59.5]} 46... Kg8 {[%clk 0:01:22.7]} 47. Be2
{[%clk 0:00:54]} 47... Kh7 {[%clk 0:01:21]} 48. f7 {[%clk 0:00:45.9]} 48... Kg7
{[%clk 0:01:20.4]} 49. Bh5 {[%clk 0:00:46.3]} 49... g4 {[%clk 0:01:19.7]} 50.
Bxg4 {[%clk 0:00:46.2]} 50... Kxf7 {[%clk 0:01:19.3]} 51. Be2 {[%clk 0:00:45.5]}
51... Be8 {[%clk 0:01:13.3]} 52. Ba6 {[%clk 0:00:43.8]} 52... Bd7 {[%clk
0:01:12.8]} 53. Bb7 {[%clk 0:00:42]} 53... Ke8 {[%clk 0:01:11.1]} 54. Kf6 {[%clk
0:00:36.1]} 54... d4 {[%clk 0:01:08.8]} 55. exd4 {[%clk 0:00:35.7]} 55... e3
{[%clk 0:01:08.9]} 56. Ba6 {[%clk 0:00:35.8]} 56... Bc8 {[%clk 0:01:06.1]} 57.
Be2 {[%clk 0:00:36.2]} 57... Kd7 {[%clk 0:01:06]} 58. Ke5 {[%clk 0:00:34.8]}
58... Ke8 {[%clk 0:01:04]} 59. Kf4 {[%clk 0:00:31.9]} 59... Kf7 {[%clk
0:01:03.7]} 60. Kxe3 {[%clk 0:00:32.2]} 60... Kf6 {[%clk 0:01:04.6]} 61. Kf4
{[%clk 0:00:32.6]} 61... Bd7 {[%clk 0:01:04.7]} 62. Bf3 {[%clk 0:00:29.2]} 62...
Be8 {[%clk 0:01:03.9]} 63. Be2 {[%clk 0:00:29.6]} 63... Bd7 {[%clk 0:01:03.7]}
64. Ba6 {[%clk 0:00:30.1]} 64... Kg6 {[%clk 0:00:58]} 65. Bb7 {[%clk 0:00:29.8]}
65... Kf7 {[%clk 0:00:58.6]} 66. b5 {[%clk 0:00:29.9]} 66... cxb5 {[%clk
0:00:58]} 67. c6 {[%clk 0:00:30.2]} 67... Ke8 {[%clk 0:00:58.9]} 68. cxd7+
{[%clk 0:00:28]} 68... Kxd7 {[%clk 0:00:58.8]} 69. Ke5 {[%clk 0:00:28.9]} 69...
b4 {[%clk 0:00:59.1]} 70. d5 {[%clk 0:00:25.6]} 70... exd5 {[%clk 0:00:55.6]}
71. Bxd5 {[%clk 0:00:26.5]} 71... Kd8 {[%clk 0:00:53.9]} 72. Ke6 {[%clk
0:00:26.4]} 72... Ke8 {[%clk 0:00:53.7]} 73. d7+ {[%clk 0:00:24.4]} 73... Kd8
{[%clk 0:00:53.5]} 74. Bb3 {[%clk 0:00:24.8]} 74... Kc7 {[%clk 0:00:52.7]} 75.
Ke7 {[%clk 0:00:25.7]} 75... Kb6 {[%clk 0:00:51.2]} 76. d8=Q+ {[%clk 0:00:26.6]}
76... Kc5 {[%clk 0:00:50.5]} 77. Qd5+ {[%clk 0:00:22.9]} 77... Kb6 {[%clk
0:00:47.9]} 78. Ba4 {[%clk 0:00:22.7]} 78... Kc7 {[%clk 0:00:46.5]} 79. Qc6+
{[%clk 0:00:18.8]} 79... Kb8 {[%clk 0:00:45.8]} 80. Qb6+ {[%clk 0:00:18.8]}
80... Kc8 {[%clk 0:00:44.5]} 81. Bd7# {[%clk 0:00:18.3]} 1-0

[Event "*** Titled Tuesday Blitz"]
[Site "Chess.com"]
[Date "2020.04.07"]
[Round "1"]
[White "Siemba"]
[Black "DanielDardha2005"]
[Result "0-1"]
[WhiteElo "2239"]
[BlackElo "2586"]
[TimeControl "180+1"]
[EndTime "13:08:33 PDT"]
[Termination "DanielDardha2005 won on time"]

1. e4 {[%clk 0:03:00.9]} 1... c5 {[%clk 0:02:59.6]} 2. Nf3 {[%clk 0:03:00.1]}
2... Nc6 {[%clk 0:02:59.3]} 3. d4 {[%clk 0:03:00.2]} 3... cxd4 {[%clk
0:02:58.7]} 4. Nxd4 {[%clk 0:03:00.4]} 4... e5 {[%clk 0:02:58.5]} 5. Nb5 {[%clk
0:03:00.1]} 5... Nf6 {[%clk 0:02:57.4]} 6. N1c3 {[%clk 0:02:58.8]} 6... d6
{[%clk 0:02:56.8]} 7. Bg5 {[%clk 0:02:57]} 7... a6 {[%clk 0:02:55.5]} 8. Na3
{[%clk 0:02:55.4]} 8... b5 {[%clk 0:02:52.8]} 9. Nd5 {[%clk 0:02:55]} 9... Be7
{[%clk 0:02:51]} 10. Bxf6 {[%clk 0:02:54.3]} 10... Bxf6 {[%clk 0:02:51.3]} 11.
c3 {[%clk 0:02:54.8]} 11... Ne7 {[%clk 0:02:46.8]} 12. Nxf6+ {[%clk 0:02:40.1]}
12... gxf6 {[%clk 0:02:47.7]} 13. Nc2 {[%clk 0:02:35.1]} 13... Bb7 {[%clk
0:02:39.2]} 14. Bd3 {[%clk 0:02:28.3]} 14... d5 {[%clk 0:02:39.1]} 15. exd5
{[%clk 0:02:21.6]} 15... Qxd5 {[%clk 0:02:40]} 16. Ne3 {[%clk 0:02:21.5]} 16...
Qe6 {[%clk 0:02:39.3]} 17. Qh5 {[%clk 0:02:16.7]} 17... e4 {[%clk 0:02:20.7]}
18. Bc2 {[%clk 0:02:06.7]} 18... f5 {[%clk 0:02:20.2]} 19. Bb3 {[%clk
0:02:02.2]} 19... Qf6 {[%clk 0:02:11]} 20. O-O-O {[%clk 0:01:38.9]} 20... O-O
{[%clk 0:01:52.5]} 21. Rd7 {[%clk 0:01:30.5]} 21... Bc6 {[%clk 0:01:47.5]} 22.
Rd4 {[%clk 0:00:50.1]} 22... Rad8 {[%clk 0:01:15.3]} 23. Rhd1 {[%clk 0:00:49.2]}
23... Rxd4 {[%clk 0:01:15.8]} 24. Rxd4 {[%clk 0:00:49]} 24... a5 {[%clk
0:01:16.2]} 25. g4 {[%clk 0:00:37.3]} 25... f4 {[%clk 0:01:13]} 26. g5 {[%clk
0:00:28.4]} 26... Qg6 {[%clk 0:01:00]} 27. Qxg6+ {[%clk 0:00:28.1]} 27... hxg6
{[%clk 0:00:58.1]} 28. Ng4 {[%clk 0:00:29]} 28... Nf5 {[%clk 0:00:47.4]} 29. Rd1
{[%clk 0:00:15.2]} 29... a4 {[%clk 0:00:19.9]} 30. Bc2 {[%clk 0:00:13.4]} 30...
Kg7 {[%clk 0:00:16.8]} 31. Re1 {[%clk 0:00:11.4]} 31... e3 {[%clk 0:00:08.3]}
32. fxe3 {[%clk 0:00:11.6]} 32... f3 {[%clk 0:00:08.2]} 33. e4 {[%clk 0:00:11]}
33... Nh4 {[%clk 0:00:07.7]} 34. Rf1 {[%clk 0:00:11.1]} 34... Rh8 {[%clk
0:00:07.3]} 35. Ne5 {[%clk 0:00:11.4]} 35... Bb7 {[%clk 0:00:05]} 36. Nxf3
{[%clk 0:00:11.7]} 36... Nxf3 {[%clk 0:00:05.9]} 37. Rxf3 {[%clk 0:00:12.6]}
37... Rxh2 {[%clk 0:00:06.5]} 38. Rf1 {[%clk 0:00:13.1]} 38... Rg2 {[%clk
0:00:05.8]} 39. Re1 {[%clk 0:00:12.6]} 39... Rxg5 {[%clk 0:00:05.7]} 40. Bd3
{[%clk 0:00:13.2]} 40... Re5 {[%clk 0:00:05.2]} 41. Rf1 {[%clk 0:00:12.9]} 41...
Bxe4 {[%clk 0:00:03.6]} 42. Re1 {[%clk 0:00:10.9]} 42... f5 {[%clk 0:00:03.9]}
43. Bxe4 {[%clk 0:00:11.5]} 43... Rxe4 {[%clk 0:00:04.8]} 44. Rd1 {[%clk
0:00:09.8]} 44... Kf6 {[%clk 0:00:04.8]} 45. Rd5 {[%clk 0:00:09.8]} 45... Re5
{[%clk 0:00:05]} 46. Rd6+ {[%clk 0:00:10]} 46... Re6 {[%clk 0:00:05.2]} 47. Rd5
{[%clk 0:00:09.9]} 47... f4 {[%clk 0:00:05.7]} 48. Kd2 {[%clk 0:00:08.5]} 48...
Re5 {[%clk 0:00:04.6]} 49. Rd8 {[%clk 0:00:06.2]} 49... Kf5 {[%clk 0:00:04.7]}
50. Rf8+ {[%clk 0:00:06.2]} 50... Kg4 {[%clk 0:00:05.1]} 51. Kd3 {[%clk
0:00:06.8]} 51... g5 {[%clk 0:00:05.4]} 52. Kd4 {[%clk 0:00:07.3]} 52... Rf5
{[%clk 0:00:05]} 53. Re8 {[%clk 0:00:05.7]} 53... f3 {[%clk 0:00:05.3]} 54. Re4+
{[%clk 0:00:05.4]} 54... Rf4 {[%clk 0:00:05.1]} 55. Ke3 {[%clk 0:00:04.2]} 55...
Rxe4+ {[%clk 0:00:04.9]} 56. Kxe4 {[%clk 0:00:04.5]} 56... f2 {[%clk 0:00:05.3]}
57. c4 {[%clk 0:00:05.4]} 57... f1=Q {[%clk 0:00:05.4]} 58. cxb5 {[%clk
0:00:05.5]} 58... Qxb5 {[%clk 0:00:06.3]} 0-1

[Event "*** Titled Tuesday Blitz"]
[Site "Chess.com"]
[Date "2020.04.07"]
[Round "1"]
[White "CyberneticLion"]
[Black "tamarozi99"]
[Result "1-0"]
[WhiteElo "2511"]
[BlackElo "1928"]
[TimeControl "180+1"]
[EndTime "13:08:36 PDT"]
[Termination "CyberneticLion won by resignation"]

1. d4 {[%clk 0:02:59.5]} 1... Nf6 {[%clk 0:02:58.5]} 2. Bf4 {[%clk 0:02:59.3]}
2... g6 {[%clk 0:02:57.4]} 3. Nc3 {[%clk 0:02:58.6]} 3... d5 {[%clk 0:02:56.6]}
4. e3 {[%clk 0:02:57.4]} 4... Bg7 {[%clk 0:02:56.6]} 5. h4 {[%clk 0:02:57.3]}
5... h5 {[%clk 0:02:55.2]} 6. Nf3 {[%clk 0:02:56.2]} 6... a6 {[%clk 0:02:41.8]}
7. Ne5 {[%clk 0:02:52.4]} 7... Nbd7 {[%clk 0:02:39.9]} 8. Be2 {[%clk 0:02:50.2]}
8... c5 {[%clk 0:02:37.5]} 9. Qd2 {[%clk 0:02:46.6]} 9... c4 {[%clk 0:02:28.7]}
10. a4 {[%clk 0:02:35]} 10... Qa5 {[%clk 0:02:04.2]} 11. O-O {[%clk 0:02:25.5]}
11... O-O {[%clk 0:02:04.1]} 12. Rfd1 {[%clk 0:02:17.5]} 12... Nxe5 {[%clk
0:01:53.9]} 13. dxe5 {[%clk 0:02:12.8]} 13... Nd7 {[%clk 0:01:46.9]} 14. Nxd5
{[%clk 0:02:01.4]} 14... Qxd2 {[%clk 0:01:45.4]} 15. Nxe7+ {[%clk 0:01:43.5]}
15... Kh7 {[%clk 0:01:45.4]} 16. Rxd2 {[%clk 0:01:44.4]} 16... Nxe5 {[%clk
0:01:45.3]} 17. c3 {[%clk 0:01:09.4]} 17... Be6 {[%clk 0:01:42]} 18. Nd5 {[%clk
0:01:02]} 18... Rfd8 {[%clk 0:01:39.5]} 19. Rad1 {[%clk 0:01:01]} 19... b5
{[%clk 0:01:32.3]} 20. Nc7 {[%clk 0:00:59.3]} 20... Rxd2 {[%clk 0:01:31]} 21.
Rxd2 {[%clk 0:01:00.2]} 21... Rc8 {[%clk 0:01:21.9]} 22. Nxe6 {[%clk 0:00:54.2]}
22... fxe6 {[%clk 0:01:22.8]} 23. axb5 {[%clk 0:00:50.5]} 23... axb5 {[%clk
0:01:22.2]} 24. Rd6 {[%clk 0:00:51]} 24... Ra8 {[%clk 0:01:02.5]} 25. Rxe6
{[%clk 0:00:42.9]} 25... Nd3 {[%clk 0:01:02.6]} 26. Bxd3 {[%clk 0:00:42]} 26...
cxd3 {[%clk 0:01:03.5]} 27. Rd6 {[%clk 0:00:42.5]} 27... Ra1+ {[%clk 0:00:56.3]}
28. Kh2 {[%clk 0:00:42.1]} 28... Rb1 {[%clk 0:00:56.5]} 29. Rxd3 {[%clk
0:00:41.7]} 29... Rxb2 {[%clk 0:00:56.6]} 30. Rd7 {[%clk 0:00:42]} 30... Kg8
{[%clk 0:00:49.7]} 31. Rc7 {[%clk 0:00:23.2]} 31... Rxf2 {[%clk 0:00:46.9]} 32.
Kg3 {[%clk 0:00:20]} 32... Rc2 {[%clk 0:00:45.6]} 33. Rc5 {[%clk 0:00:20.3]}
33... Rxc3 {[%clk 0:00:43.8]} 34. Rxb5 {[%clk 0:00:20.6]} 34... Ra3 {[%clk
0:00:41.1]} 35. Kf3 {[%clk 0:00:20.5]} 35... Bf6 {[%clk 0:00:37.1]} 36. Bg5
{[%clk 0:00:19.5]} 36... Bc3 {[%clk 0:00:26.8]} 37. Rb7 {[%clk 0:00:17.4]} 37...
Bd2 {[%clk 0:00:23.7]} 38. Re7 {[%clk 0:00:14.4]} 38... Ra4 {[%clk 0:00:22]} 39.
Re6 {[%clk 0:00:11.7]} 39... Kf7 {[%clk 0:00:20.9]} 40. Rd6 {[%clk 0:00:11.7]}
40... Bc3 {[%clk 0:00:18.2]} 41. Rd7+ {[%clk 0:00:12]} 41... Kg8 {[%clk
0:00:18.3]} 42. e4 {[%clk 0:00:12.3]} 42... Ra3 {[%clk 0:00:17]} 43. Kf4 {[%clk
0:00:11.9]} 43... Bd2+ {[%clk 0:00:16.8]} 44. Rxd2 {[%clk 0:00:11.2]} 44... Ra4
{[%clk 0:00:14.3]} 45. Rd8+ {[%clk 0:00:11]} 45... Kf7 {[%clk 0:00:13.7]} 46.
Rd7+ {[%clk 0:00:11.9]} 46... Ke6 {[%clk 0:00:12.9]} 47. Rg7 {[%clk 0:00:11.3]}
47... Ra2 {[%clk 0:00:13]} 48. Rxg6+ {[%clk 0:00:11.4]} 48... Kd7 {[%clk
0:00:13.4]} 49. Bf6 {[%clk 0:00:11]} 49... Rf2+ {[%clk 0:00:13.2]} 50. Ke5
{[%clk 0:00:10.8]} 50... Re2 {[%clk 0:00:13.5]} 51. Rg7+ {[%clk 0:00:11.1]}
51... Kc6 {[%clk 0:00:13.9]} 52. Kf5 {[%clk 0:00:10.6]} 52... Rf2+ {[%clk
0:00:13.7]} 53. Ke6 {[%clk 0:00:10.7]} 53... Re2 {[%clk 0:00:12.8]} 54. e5
{[%clk 0:00:11.2]} 54... Re1 {[%clk 0:00:11.4]} 55. Kf7 {[%clk 0:00:11.2]} 55...
Kd5 {[%clk 0:00:10]} 56. Rg5 {[%clk 0:00:10.1]} 1-0